bitfinex/quotes_SOLUSD_20220103
["timestamp","ask_amount","ask_price","bid_price","bid_amount"]
[1641206781875,2.92107454,174.53,174.44,1.2344]
[1641206781876,2.92107454,174.53,174.48,8.1]
[1641206782073,2.92107454,174.53,174.49,8.1]
[1641206782773,3.18107454,174.53,174.44,8.1]
[1641206783577,11.77997454,174.53,174.44,8.1]
[1641206783975,11.77997454,174.53,174.44,8.36]
[1641206786577,3.18107454,174.53,174.44,8.36]
[1641206787776,2.92107454,174.53,174.44,16.958]
[1641206787977,2.92107454,174.53,174.44,18.38469368]
[1641206788377,2.92107454,174.53,174.44,16.958]
[1641206788977,3.18107454,174.53,174.44,16.958]
[1641206789182,2.92107454,174.53,174.44,16.958]
[1641206789779,2.92107454,174.53,174.45,1.42669368]
[1641206789980,2.92107454,174.53,174.46,16.697]
[1641206790480,2.92107454,174.53,174.46,16.957]
[1641206798188,74.1125,174.57,174.47,11.84983489]
[1641206798387,74.1125,174.57,174.47,19.94983489]
[1641206798589,74.3725,174.57,174.47,19.94983489]
[1641206798989,74.3725,174.57,174.48,3.25333489]
[1641206799193,2.86102154,174.56,174.48,3.25333489]
[1641206799589,3.12102154,174.56,174.48,3.25333489]
[1641206800014,2.86102154,174.56,174.48,11.84913489]
[1641206800617,2.86102154,174.56,174.48,11.61333489]
[1641206801316,3.12102154,174.56,174.48,11.61333489]
[1641206801518,3.12102154,174.56,174.48,8.36]
[1641206801921,3.12102154,174.56,174.48,0.26]
[1641206802120,3.12102154,174.56,174.48,3.25333489]
[1641206802521,3.12102154,174.56,174.48,3.51333489]
[1641206802720,3.12102154,174.56,174.48,3.25333489]
[1641206802920,3.62102154,174.56,174.48,3.25333489]
[1641206803321,3.62102154,174.56,174.42,3.25333489]
[1641206803524,1.2633,174.55,174.42,3.25333489]
[1641206803725,8.5989,174.53,174.42,11.85213489]
[1641206803924,2.25452711,174.52,174.42,11.85213489]
[1641206804124,2.25452711,174.52,174.42,8.8588]
[1641206804324,2.51452711,174.52,174.42,8.8588]
[1641206804925,11.11392711,174.52,174.42,11.85213489]
[1641206805224,11.11392711,174.52,174.42,3.25333489]
[1641206805225,30.69116597,174.51,174.42,3.25333489]
[1641206805426,31.19116597,174.51,174.42,3.25333489]
[1641206805628,31.45116597,174.51,174.42,3.25333489]
[1641206805826,30.95116597,174.51,174.42,3.25333489]
[1641206806427,2.47113446,174.47,174.38,17.9197]
[1641206806925,2.73113446,174.47,174.38,9.8197]
[1641206807129,2.73113446,174.47,174.39,3.25333489]
[1641206807927,2.73113446,174.47,174.39,11.85403489]
[1641206808326,2.73113446,174.47,174.39,8.6007]
[1641206808527,2.73113446,174.47,174.39,8.8607]
[1641206809128,2.73113446,174.47,174.39,8.6007]
[1641206809329,2.73113446,174.47,174.38,3.25333489]
[1641206810530,11.33303446,174.47,174.38,3.25333489]
[1641206811330,11.33303446,174.47,174.36,11.85563489]
[1641206811531,11.33303446,174.47,174.36,12.11563489]
[1641206812933,2.73113446,174.47,174.36,13.54232857]
[1641206819539,2.73113446,174.47,174.37,1.2555]
[1641206819740,2.73113446,174.47,174.39,8.6005]
[1641206820141,2.73113446,174.47,174.39,8.8605]
[1641206823141,2.73113446,174.47,174.39,14.9775]
[1641206823442,1.2611,174.49,174.4,8.1]
[1641206823640,148.5089,174.5,174.43,8.5989]
[1641206823842,75.9074,174.5,174.43,8.5989]
[1641206824041,75.9074,174.5,174.43,8.8589]
[1641206824442,75.9074,174.5,174.44,8.1]
[1641206824645,3.05574088,174.51,174.46,8.5975]
[1641206825045,3.05574088,174.51,174.46,8.8575]
[1641206825443,74.7455,174.53,174.46,8.8575]
[1641206825643,94.0,174.54,174.46,8.8575]
[1641206826276,3.60329944,174.59,174.46,16.9575]
[1641206826475,3.60329944,174.59,174.46,18.38419368]
[1641206826476,2.27062909,174.57,174.46,18.38419368]
[1641206829879,2.27062909,174.57,174.46,18.12419368]
[1641206830281,2.27062909,174.57,174.46,16.6975]
[1641206830481,2.53062909,174.57,174.46,16.6975]
[1641206831279,2.27062909,174.57,174.46,16.6975]
[1641206831479,2.27062909,174.57,174.46,18.38419368]
[1641206831680,2.27062909,174.57,174.46,18.40419368]
[1641206832282,2.27062909,174.57,174.46,16.9775]
[1641206832682,2.53062909,174.57,174.46,16.9775]
[1641206833283,2.53062909,174.57,174.46,16.7175]
[1641206833984,11.12732909,174.57,174.46,8.12]
[1641206835185,11.12732909,174.57,174.46,8.38]
[1641206835587,11.12732909,174.57,174.46,16.9775]
[1641206835784,11.12732909,174.57,174.46,8.38]
[1641206836084,11.12732909,174.57,174.46,8.12]
[1641206837584,11.12732909,174.57,174.46,8.38]
[1641206838986,12.55402277,174.57,174.46,8.38]
[1641206841189,12.29402277,174.57,174.46,8.38]
[1641206841689,10.86732909,174.57,174.46,8.38]
[1641206842489,11.12732909,174.57,174.46,16.9774]
[1641206844689,10.86732909,174.57,174.46,16.9774]
[1641206845991,11.12732909,174.57,174.46,16.9774]
[1641206846390,10.62732909,174.57,174.46,16.7174]
[1641206847493,10.62732909,174.57,174.46,16.9774]
[1641206847893,10.62732909,174.57,174.46,16.7174]
[1641206849195,10.62732909,174.57,174.46,8.8774]
[1641206851397,10.62732909,174.57,174.46,0.28]
[1641206851599,11.12732909,174.57,174.46,0.02]
[1641206851799,10.62732909,174.57,174.46,0.02]
[1641206852827,10.62732909,174.57,174.46,8.6175]
[1641206853430,10.62732909,174.57,174.46,8.8775]
[1641206853630,11.95902909,174.57,174.46,8.8775]
[1641206857938,11.95902909,174.57,174.46,16.9775]
[1641206859136,11.95902909,174.57,174.46,16.7175]
[1641206859536,11.95902909,174.57,174.46,8.12]
[1641206860138,20.05902909,174.57,174.46,0.02]
[1641206860338,11.95902909,174.57,174.46,0.02]
[1641206862841,11.95902909,174.57,174.46,8.6175]
[1641206863042,11.95902909,174.57,174.46,8.8775]
[1641206871772,8.88429108,174.58,174.46,17.74719368]
[1641206871974,0.28779108,174.58,174.46,25.84719368]
[1641206872584,0.28779108,174.58,174.47,1.27]
[1641206872780,2.77654533,174.57,174.51,8.595]
[1641206872988,2.77654533,174.57,174.51,8.855]
[1641206873483,3.03654533,174.57,174.48,8.1]
[1641206873683,3.03654533,174.57,174.47,9.8338]
[1641206873892,8.1,174.56,174.46,0.02]
[1641206874082,9.6262,174.56,174.46,0.02]
[1641206874282,11.55289368,174.56,174.46,0.02]
[1641206874684,1.42669368,174.55,174.46,0.02]
[1641206874884,8.6002,174.51,174.46,0.02]
[1641206875085,74.1442,174.53,174.46,0.02]
[1641206875282,0.26,174.51,174.46,0.02]
[1641206875883,107.82168555,174.53,174.46,0.02]
[1641206876083,2.39885929,174.52,174.46,0.02]
[1641206876583,2.65885929,174.52,174.46,0.02]
[1641206876788,2.9895325,174.49,174.46,0.02]
[1641206876983,3.2495325,174.49,174.46,0.02]
[1641206877183,5.56439994,174.48,174.46,0.02]
[1641206882290,5.82439994,174.48,174.46,0.02]
[1641206883492,14.42549994,174.48,174.46,0.02]
[1641206884092,15.85219362,174.48,174.46,0.02]
[1641206884290,73.7335,174.47,174.46,0.02]
[1641206884491,82.5961,174.47,174.46,0.02]
[1641206884893,90.6961,174.47,174.46,0.02]
[1641206886896,91.1961,174.47,174.46,0.02]
[1641206887999,90.9361,174.47,174.46,0.02]
[1641206889299,91.1961,174.47,174.46,0.02]
[1641206890700,30.03671782,174.46,174.34,10.1376]
[1641206890901,2.54185386,174.42,174.34,10.1376]
[1641206891100,2.80185386,174.42,174.34,10.1376]
[1641206891301,2.80185386,174.42,174.34,1.5343]
[1641206891902,11.40575386,174.42,174.34,1.5343]
[1641206894807,11.40575386,174.42,174.34,1.2743]
[1641206895008,11.40575386,174.42,174.33,5.21274333]
[1641206895206,11.90575386,174.42,174.33,5.21274333]
[1641206895710,8.1,174.41,174.33,5.21274333]
[1641206895907,8.6062,174.38,174.33,5.21274333]
[1641206896110,27.33417319,174.37,174.33,5.21274333]
[1641206896606,27.59417319,174.37,174.33,5.21274333]
[1641206896806,36.20067319,174.37,174.33,5.21274333]
[1641206900335,27.59417319,174.37,174.33,5.21274333]
[1641206900536,3.26035719,174.37,174.33,5.21274333]
[1641206900936,0.26,174.37,174.33,5.21274333]
[1641206901336,8.8659,174.39,174.33,5.21274333]
[1641206901537,26.3490598,174.38,174.33,5.21274333]
[1641206901936,29.02346733,174.38,174.33,5.21274333]
[1641206902839,26.6090598,174.38,174.33,5.21274333]
[1641206903037,0.26,174.38,174.33,5.21274333]
[1641206903437,8.8659,174.39,174.33,5.21274333]
[1641206903837,11.78828111,174.39,174.33,5.21274333]
[1641206904136,36.15013891,174.39,174.33,5.21274333]
[1641206905138,35.89013891,174.39,174.33,5.21274333]
[1641206905339,27.28423891,174.39,174.33,5.21274333]
[1641206905538,27.28423891,174.39,174.33,5.47274333]
[1641206906539,27.54423891,174.39,174.33,5.47274333]
[1641206906940,27.54423891,174.39,174.33,5.21274333]
[1641206907541,36.14983891,174.39,174.33,5.21274333]
[1641206910445,27.54423891,174.39,174.33,5.21274333]
[1641206911047,27.54423891,174.39,174.33,5.47274333]
[1641206913149,27.54423891,174.39,174.33,5.21274333]
[1641206914350,27.54423891,174.39,174.33,5.47274333]
[1641206914550,27.54423891,174.39,174.33,5.21274333]
[1641206914952,27.54423891,174.39,174.33,5.47274333]
[1641206915351,27.54423891,174.39,174.33,5.21274333]
[1641206916551,3.18238111,174.39,174.33,5.21274333]
[1641206917759,11.78778111,174.39,174.33,5.21274333]
[1641206919359,3.18238111,174.39,174.33,5.21274333]
[1641206919760,22.94532113,174.4,174.33,5.47274333]
[1641206919959,75.8977,174.42,174.33,5.47274333]
[1641206920362,76.1577,174.42,174.33,5.47274333]
[1641206920760,2.73205978,174.41,174.33,14.07654333]
[1641206921261,2.99205978,174.41,174.33,14.07654333]
[1641206921465,2.99205978,174.41,174.33,5.47274333]
[1641206922063,11.59665978,174.41,174.33,5.47274333]
[1641206924790,2.99205978,174.41,174.33,5.21274333]
[1641206926192,2.99205978,174.41,174.33,14.07664333]
[1641206929798,1.2495,174.44,174.33,14.07664333]
[1641206929999,72.1605,174.46,174.33,14.07664333]
[1641206930302,73.3871,174.46,174.38,8.6012]
[1641206930502,73.3871,174.46,174.38,8.8612]
[1641206930800,27.57129954,174.45,174.38,0.26]
[1641206931203,27.57129954,174.45,174.34,38.3089]
[1641206931403,27.83129954,174.45,174.37,8.602]
[1641206931603,27.83129954,174.45,174.37,8.862]
[1641206934905,25.57914862,174.45,174.37,8.862]
[1641206936107,28.19574818,174.45,174.37,8.862]
[1641206942114,27.93574818,174.45,174.37,8.862]
[1641206943417,28.19574818,174.45,174.37,8.862]
[1641206945221,0.26,174.45,174.37,8.862]
[1641206945619,73.828,174.47,174.37,8.862]
[1641206945620,74.088,174.47,174.37,8.862]
[1641206946021,74.088,174.47,174.39,8.6008]
[1641206946220,26.81502334,174.46,174.39,8.6008]
[1641206946420,26.81502334,174.46,174.39,8.8608]
[1641206946626,27.07502334,174.46,174.39,8.8608]
[1641206947121,27.07502334,174.46,174.38,9.8762]
[1641206947320,27.07502334,174.46,174.38,1.2747]
[1641206948525,35.67712334,174.46,174.38,1.2747]
[1641206949126,36.92012334,174.46,174.38,1.2747]
[1641206955755,28.31802334,174.46,174.38,9.8762]
[1641206955955,28.31802334,174.46,174.38,1.2747]
[1641206956157,28.31802334,174.46,174.38,1.5347]
[1641206956556,28.31802334,174.46,174.38,0.26]
[1641206956957,28.31802334,174.46,174.34,1.2357]
[1641206957157,36.92012334,174.46,174.36,8.6025]
[1641206957559,36.92012334,174.46,174.36,8.8625]
[1641206958358,36.66012334,174.46,174.36,8.8625]
[1641206958558,36.66012334,174.46,174.37,1.2913]
[1641206959062,36.66012334,174.46,174.37,1.5513]
[1641206959662,36.92012334,174.46,174.37,1.5513]
[1641206962164,36.92012334,174.46,174.37,1.2913]
[1641206962363,45.52012334,174.46,174.35,8.603]
[1641206962563,45.52012334,174.46,174.35,0.26]
[1641206962764,45.02012334,174.46,174.35,0.26]
[1641206962965,45.52012334,174.46,174.34,1.5974]
[1641206963364,45.52012334,174.46,174.34,10.2009]
[1641206964769,45.02012334,174.46,174.34,10.2009]
[1641206975507,45.52012334,174.46,174.34,10.2009]
[1641206976709,45.52012334,174.46,174.34,1.5974]
[1641206977308,45.52012334,174.46,174.33,5.21274333]
[1641206978509,45.52012334,174.46,174.33,5.47274333]
[1641206979314,45.52012334,174.46,174.33,14.07674333]
[1641206979912,45.52012334,174.46,174.34,1.3282]
[1641206980111,45.52012334,174.46,174.34,1.5882]
[1641206980312,45.52012334,174.46,174.34,1.3282]
[1641206981916,45.52012334,174.46,174.33,5.21274333]
[1641206982313,48.58116179,174.46,174.33,5.21274333]
[1641206983717,1.63434477,174.45,174.33,5.21274333]
[1641206983918,8.606,174.39,174.33,5.21274333]
[1641206984119,2.52592123,174.38,174.33,5.21274333]
[1641206984522,2.78592123,174.38,174.33,5.21274333]
[1641206985423,11.39182123,174.38,174.33,5.21274333]
[1641206986321,11.13182123,174.38,174.33,5.21274333]
[1641206987126,11.63182123,174.38,174.33,5.21274333]
[1641206987525,11.89182123,174.38,174.33,5.21274333]
[1641206987923,11.39182123,174.38,174.33,5.21274333]
[1641206991428,2.52592123,174.38,174.33,5.21274333]
[1641206992528,2.78592123,174.38,174.33,5.21274333]
[1641206994131,0.26,174.38,174.33,5.21274333]
[1641206994632,8.8655,174.39,174.33,5.21274333]
[1641206999436,9.3655,174.39,174.33,5.21274333]
[1641207000236,8.8655,174.39,174.33,5.21274333]
[1641207002469,9.3655,174.39,174.33,5.21274333]
[1641207003469,8.1,174.38,174.33,5.21274333]
[1641207003668,8.6076,174.36,174.33,5.21274333]
[1641207004069,35.93838672,174.34,174.33,5.21274333]
[1641207004269,2.93838672,174.34,174.33,5.21274333]
[1641207004473,0.26,174.34,174.33,5.21274333]
[1641207004670,5.56439994,174.35,174.33,5.21274333]
[1641207006070,4.03507271,174.39,174.34,0.5]
[1641207006271,4.03507271,174.39,174.33,5.21274333]
[1641207006472,33.08895228,174.39,174.33,5.21274333]
[1641207006671,32.82895228,174.39,174.33,5.21274333]
[1641207006871,31.59045228,174.39,174.33,5.47274333]
[1641207007071,2.79657271,174.39,174.33,5.47274333]
[1641207008074,3.05657271,174.39,174.33,5.47274333]
[1641207009479,3.05657271,174.39,174.33,5.21274333]
[1641207011282,3.05657271,174.39,174.33,5.47274333]
[1641207011482,3.05657271,174.39,174.33,5.21274333]
[1641207011882,8.1,174.38,174.33,5.21274333]
[1641207012182,8.36,174.38,174.33,5.21274333]
[1641207012380,8.86,174.38,174.33,5.21274333]
[1641207013383,8.6078,174.36,174.33,5.21274333]
[1641207013636,13.66439994,174.35,174.33,5.21274333]
[1641207013984,13.92439994,174.35,174.33,5.21274333]
[1641207014384,51.50308376,174.34,174.33,5.21274333]
[1641207014580,51.76308376,174.34,174.33,5.21274333]
[1641207014781,60.37108376,174.34,174.33,5.21274333]
[1641207018589,68.47108376,174.34,174.33,5.21274333]
[1641207019191,44.968,174.34,174.33,5.21274333]
[1641207019591,44.708,174.34,174.33,5.21274333]
[1641207019792,36.1,174.34,174.33,5.21274333]
[1641207019990,28.0,174.34,174.33,5.21274333]
[1641207020290,5.56439994,174.35,174.33,5.21274333]
[1641207021995,5.82439994,174.35,174.33,5.21274333]
[1641207022390,5.56439994,174.35,174.33,5.21274333]
[1641207022589,5.82439994,174.35,174.33,5.21274333]
[1641207024794,5.56439994,174.35,174.33,5.21274333]
[1641207025014,48.25887612,174.38,174.34,0.5]
[1641207025516,48.51887612,174.38,174.33,5.21274333]
[1641207027719,49.01887612,174.38,174.33,5.21274333]
[1641207028122,48.51887612,174.38,174.33,5.21274333]
[1641207028724,49.01887612,174.38,174.33,5.21274333]
[1641207028922,48.51887612,174.38,174.33,5.21274333]
[1641207029423,49.01887612,174.38,174.33,5.21274333]
[1641207029724,48.51887612,174.38,174.33,5.21274333]
[1641207030327,49.01887612,174.38,174.33,5.21274333]
[1641207031330,48.51887612,174.38,174.33,5.21274333]
[1641207032132,49.01887612,174.38,174.33,5.21274333]
[1641207032330,48.51887612,174.38,174.33,5.21274333]
[1641207033933,49.01887612,174.38,174.33,5.21274333]
[1641207036135,48.75887612,174.38,174.33,5.21274333]
[1641207036735,48.25887612,174.38,174.33,5.21274333]
[1641207037536,48.75887612,174.38,174.33,5.21274333]
[1641207037936,49.01887612,174.38,174.33,5.21274333]
[1641207038136,17.4665,174.38,174.33,5.21274333]
[1641207038336,16.7065,174.38,174.33,5.21274333]
[1641207039339,19.20176928,174.38,174.33,5.21274333]
[1641207039538,19.46176928,174.38,174.33,5.21274333]
[1641207042343,19.20176928,174.38,174.33,5.21274333]
[1641207042642,10.59526928,174.38,174.33,5.21274333]
[1641207043542,10.85526928,174.38,174.33,5.21274333]
[1641207043748,8.36,174.38,174.33,5.21274333]
[1641207043944,8.6055,174.4,174.33,5.21274333]
[1641207044143,8.1,174.43,174.33,5.21274333]
[1641207044743,2.6092582,174.42,174.33,5.21274333]
[1641207044942,28.70155362,174.42,174.34,1.2593]
[1641207045145,8.605,174.41,174.34,1.2593]
[1641207045544,8.865,174.41,174.34,1.2593]
[1641207045845,8.865,174.41,174.33,5.21274333]
[1641207046046,16.965,174.41,174.33,5.21274333]
[1641207046446,17.465,174.41,174.33,5.21274333]
[1641207047847,16.965,174.41,174.33,5.21274333]
[1641207048047,18.2452,174.41,174.33,5.21274333]
[1641207049047,16.965,174.41,174.33,5.21274333]
[1641207052550,16.705,174.41,174.33,5.47274333]
[1641207052750,8.1,174.41,174.33,5.47274333]
[1641207054351,8.1,174.41,174.33,14.07674333]
[1641207055352,8.36,174.41,174.33,14.07674333]
[1641207057557,0.26,174.41,174.33,14.07674333]
[1641207058055,11.4734582,174.42,174.33,14.07674333]
[1641207058755,11.4734582,174.42,174.34,1.2583]
[1641207059556,19.5734582,174.42,174.34,1.2583]
[1641207061957,21.3961582,174.42,174.34,1.2583]
[1641207066861,20.8961582,174.42,174.34,1.2583]
[1641207068364,21.3961582,174.42,174.34,1.2583]
[1641207069266,20.8961582,174.42,174.34,1.2583]
[1641207069463,21.3961582,174.42,174.34,1.2583]
[1641207069887,20.8961582,174.42,174.34,1.2583]
[1641207070264,21.3961582,174.42,174.34,1.2583]
[1641207072366,21.3961582,174.42,174.33,5.21274333]
[1641207072967,23.03050297,174.42,174.33,5.21274333]
[1641207073468,22.77050297,174.42,174.33,5.21274333]
[1641207074273,22.27050297,174.42,174.34,1.3236]
[1641207074873,20.8961582,174.42,174.34,1.3236]
[1641207075070,21.3961582,174.42,174.34,1.3236]
[1641207076479,23.03050297,174.42,174.34,1.3236]
[1641207077709,21.3961582,174.42,174.34,1.3236]
[1641207078107,20.8961582,174.42,174.34,1.3236]
[1641207078307,21.3961582,174.42,174.34,1.3236]
[1641207078709,20.8961582,174.42,174.34,1.3236]
[1641207079708,21.3961582,174.42,174.34,1.3236]
[1641207084414,21.3961582,174.42,174.33,5.21274333]
[1641207085013,1.63434477,174.41,174.33,5.21274333]
[1641207085216,8.6079,174.37,174.33,5.21274333]
[1641207085418,34.96974735,174.36,174.33,5.21274333]
[1641207085617,35.22974735,174.36,174.33,5.21274333]
[1641207086218,5.56439994,174.35,174.33,5.21274333]
[1641207086618,5.82439994,174.35,174.33,5.21274333]
[1641207087321,14.43279994,174.35,174.33,5.21274333]
[1641207091225,14.17279994,174.35,174.33,5.21274333]
[1641207091424,5.56439994,174.35,174.33,5.21274333]
[1641207092623,5.82439994,174.35,174.33,5.21274333]
[1641207094425,14.43189994,174.35,174.33,5.21274333]
[1641207097224,14.17189994,174.35,174.33,5.21274333]
[1641207098226,5.56439994,174.35,174.33,5.21274333]
[1641207098626,5.82439994,174.35,174.33,5.21274333]
[1641207102331,14.43189994,174.35,174.33,5.21274333]
[1641207103736,23.03189994,174.35,174.33,5.21274333]
[1641207111044,22.53189994,174.35,174.33,5.21274333]
[1641207111744,22.27189994,174.35,174.33,5.21274333]
[1641207112950,22.53189994,174.35,174.33,5.21274333]
[1641207115554,22.27189994,174.35,174.33,5.21274333]
[1641207115757,8.607,174.36,174.34,0.5]
[1641207115953,26.27256721,174.38,174.34,0.5]
[1641207116752,28.64037156,174.38,174.34,0.5]
[1641207117156,2.36780435,174.38,174.34,0.5]
[1641207117756,2.36780435,174.38,174.33,5.21274333]
[1641207118355,10.97380435,174.38,174.33,5.21274333]
[1641207118555,11.23380435,174.38,174.33,5.21274333]
[1641207121189,10.97380435,174.38,174.33,5.21274333]
[1641207121385,2.36780435,174.38,174.33,5.21274333]
[1641207122586,2.62780435,174.38,174.33,5.21274333]
[1641207124489,11.23400435,174.38,174.33,5.21274333]
[1641207127490,10.97400435,174.38,174.33,5.21274333]
[1641207128693,11.23400435,174.38,174.33,5.21274333]
[1641207131393,11.73400435,174.38,174.33,5.21274333]
[1641207132893,11.23400435,174.38,174.33,5.21274333]
[1641207134097,11.73400435,174.38,174.33,5.21274333]
[1641207138132,11.23400435,174.38,174.33,5.21274333]
[1641207138334,11.73400435,174.38,174.33,5.21274333]
[1641207139333,19.83400435,174.38,174.33,5.21274333]
[1641207152245,21.46834912,174.38,174.33,5.21274333]
[1641207153545,1.63434477,174.37,174.33,5.21274333]
[1641207153747,8.6098,174.35,174.33,5.21274333]
[1641207153945,62.45243383,174.34,174.33,5.21274333]
[1641207154345,63.21243383,174.34,174.33,5.21274333]
[1641207155345,71.82223383,174.34,174.33,0.00274333]
[1641207155547,57.3417527,174.34,174.33,0.00274333]
[1641207155748,62.0,174.33,174.22,1.2495]
[1641207155952,8.1,174.32,174.22,1.2495]
[1641207156148,2.96653802,174.31,174.22,1.2495]
[1641207156451,8.6126,174.26,174.22,1.2495]
[1641207156649,2.82252671,174.25,174.18,1.2295]
[1641207157047,3.08252671,174.25,174.15,8.6128]
[1641207157248,3.08252671,174.25,174.16,1.2425]
[1641207157649,11.69532671,174.25,174.16,1.2425]
[1641207160650,11.43532671,174.25,174.16,1.2425]
[1641207160853,11.43532671,174.25,174.16,1.5025]
[1641207161054,11.43532671,174.25,174.16,10.1148]
[1641207163059,11.69532671,174.25,174.16,10.1148]
[1641207163781,8.8728,174.25,174.16,10.1148]
[1641207164384,8.6118,174.27,174.16,10.1148]
[1641207164583,25.81694051,174.29,174.17,8.1]
[1641207164783,2.57012917,174.32,174.22,8.6094]
[1641207164986,2.57012917,174.32,174.22,14.9204]
[1641207165584,8.6099,174.31,174.22,6.311]
[1641207165784,31.33590359,174.3,174.22,6.311]
[1641207165984,31.59590359,174.3,174.22,0.26]
[1641207166185,2.48695787,174.29,174.21,8.6098]
[1641207166385,2.48695787,174.29,174.19,1.5206]
[1641207166585,2.74695787,174.29,174.19,1.5206]
[1641207166788,11.35745787,174.29,174.19,1.2606]
[1641207169391,11.35745787,174.29,174.19,9.8715]
[1641207169991,11.35745787,174.29,174.19,1.2606]
[1641207172594,11.35745787,174.29,174.19,9.8714]
[1641207173694,11.09745787,174.29,174.19,9.8714]
[1641207174496,11.09745787,174.29,174.19,1.2606]
[1641207174994,11.35745787,174.29,174.19,1.2606]
[1641207179500,11.85745787,174.29,174.19,1.2606]
[1641207179698,11.35745787,174.29,174.19,1.2606]
[1641207184103,11.85745787,174.29,174.19,1.2606]
[1641207185002,8.1,174.28,174.19,1.2606]
[1641207185204,8.6128,174.24,174.19,1.2606]
[1641207185405,26.90044816,174.23,174.15,8.6128]
[1641207185603,27.16044816,174.23,174.15,8.6128]
[1641207187605,27.16044816,174.23,174.15,8.8728]
[1641207189804,26.90044816,174.23,174.15,8.8728]
[1641207190007,24.31946033,174.23,174.16,8.1]
[1641207190206,78.9082,174.28,174.17,8.6116]
[1641207190607,78.9082,174.28,174.17,8.8716]
[1641207190911,78.9082,174.28,174.17,8.6116]
[1641207191110,25.89499735,174.27,174.18,1.2335]
[1641207191510,26.65499735,174.27,174.18,1.2335]
[1641207191709,26.15499735,174.27,174.18,1.2335]
[1641207191911,26.65499735,174.27,174.18,1.2335]
[1641207192110,8.6123,174.26,174.18,1.2335]
[1641207192511,8.8723,174.26,174.18,1.2335]
[1641207192910,8.8723,174.26,174.18,1.4935]
[1641207193611,0.26,174.26,174.18,10.105]
[1641207194215,34.76649735,174.27,174.18,10.105]
[1641207194818,34.76649735,174.27,174.18,9.845]
[1641207196420,34.76649735,174.27,174.18,1.2335]
[1641207197021,35.26649735,174.27,174.18,1.2335]
[1641207197222,34.76649735,174.27,174.18,1.2335]
[1641207197651,35.26649735,174.27,174.18,1.2335]
[1641207198546,34.76649735,174.27,174.18,1.2335]
[1641207201250,35.26649735,174.27,174.18,1.2335]
[1641207201448,43.36649735,174.27,174.18,1.2335]
[1641207201847,35.26649735,174.27,174.18,1.2335]
[1641207202051,8.1,174.26,174.18,1.2335]
[1641207202248,8.6128,174.24,174.18,1.2335]
[1641207202449,2.16085172,174.23,174.18,1.2335]
[1641207202849,2.42085172,174.23,174.18,1.2335]
[1641207203651,2.42085172,174.23,174.16,8.6124]
[1641207204052,2.42085172,174.23,174.13,8.6135]
[1641207204053,11.03415172,174.23,174.13,8.6135]
[1641207204247,11.03415172,174.23,174.14,1.277]
[1641207207649,11.53415172,174.23,174.14,1.277]
[1641207208456,11.03415172,174.23,174.14,1.277]
[1641207208851,11.53415172,174.23,174.14,1.277]
[1641207209950,0.26,174.23,174.14,9.8903]
[1641207210151,1.3021,174.25,174.14,10.1503]
[1641207210552,1.8021,174.25,174.14,10.1503]
[1641207210750,1.3021,174.25,174.14,10.1503]
[1641207210949,2.67670398,174.24,174.14,10.1503]
[1641207211151,11.28980398,174.24,174.14,10.1503]
[1641207212156,11.54980398,174.24,174.14,10.1503]
[1641207216556,11.54980398,174.24,174.14,9.8903]
[1641207218065,11.54980398,174.24,174.14,10.1503]
[1641207219861,11.54980398,174.24,174.14,9.8903]
[1641207221366,2.67670398,174.24,174.14,10.1503]
[1641207222166,2.67670398,174.24,174.14,11.57699368]
[1641207223970,2.93670398,174.24,174.14,11.57699368]
[1641207229773,2.93670398,174.24,174.14,11.31699368]
[1641207231076,2.93670398,174.24,174.14,11.57699368]
[1641207231278,2.93670398,174.24,174.14,11.31699368]
[1641207232382,2.93670398,174.24,174.14,9.8903]
[1641207232580,2.93670398,174.24,174.14,10.1503]
[1641207233484,3.43670398,174.24,174.14,10.1503]
[1641207233683,2.93670398,174.24,174.14,10.1503]
[1641207234883,2.61564231,174.27,174.15,85.27469081]
[1641207235084,2.61564231,174.27,174.16,8.6123]
[1641207235284,1.2773,174.26,174.16,8.6123]
[1641207235683,8.89002481,174.26,174.16,8.6123]
[1641207235883,8.89002481,174.26,174.17,1.2346]
[1641207236284,9.15002481,174.26,174.17,1.2346]
[1641207236485,8.6127,174.25,174.17,1.2346]
[1641207236885,8.8727,174.25,174.17,1.2346]
[1641207237385,3.00864962,174.24,174.17,1.2346]